[Event "*** Titled Tuesday Blitz"]
[Site "Chess.com"]
[Date "2020.11.03"]
[Round "1"]
[White "enriquebutti"]
[Black "kingofthenil"]
[Result "0-1"]
[WhiteElo "1976"]
[BlackElo "2488"]
[TimeControl "180+1"]
[EndTime "10:09:08 PST"]
[Termination "kingofthenil won by resignation"]

1. Nf3 {[%clk 0:02:44.9]} 1... Nf6 {[%clk 0:03:00.1]} 2. b3 {[%clk 0:02:44.6]}
2... d5 {[%clk 0:03:00.2]} 3. Bb2 {[%clk 0:02:45.1]} 3... Bf5 {[%clk 0:03:01.1]}
4. e3 {[%clk 0:02:44.9]} 4... e6 {[%clk 0:03:01.7]} 5. d4 {[%clk 0:02:44.6]}
5... Nbd7 {[%clk 0:03:02.6]} 6. Bd3 {[%clk 0:02:45.1]} 6... Bd6 {[%clk
0:03:02.7]} 7. Nbd2 {[%clk 0:02:44.7]} 7... O-O {[%clk 0:03:02.7]} 8. Qe2 {[%clk
0:02:44.8]} 8... Qe7 {[%clk 0:02:59.7]} 9. Ne5 {[%clk 0:02:44.8]} 9... Ba3
{[%clk 0:02:59.1]} 10. Bc3 {[%clk 0:02:40.2]} 10... Bxd3 {[%clk 0:02:52.6]} 11.
cxd3 {[%clk 0:02:35.8]} 11... c5 {[%clk 0:02:49.7]} 12. dxc5 {[%clk 0:02:27]}
12... Qxc5 {[%clk 0:02:48.4]} 13. Bd4 {[%clk 0:02:27.1]} 13... Qd6 {[%clk
0:02:46.7]} 14. Nxd7 {[%clk 0:02:25.3]} 14... Nxd7 {[%clk 0:02:47.6]} 15. Rd1
{[%clk 0:02:18.5]} 15... Rfc8 {[%clk 0:02:34.2]} 16. Nf3 {[%clk 0:02:15]} 16...
e5 {[%clk 0:02:33]} 17. Ba1 {[%clk 0:02:14]} 17... f6 {[%clk 0:02:19.2]} 18. O-O
{[%clk 0:02:13.8]} 18... Rc6 {[%clk 0:02:18.7]} 19. e4 {[%clk 0:02:13.1]} 19...
d4 {[%clk 0:02:16.9]} 20. Nd2 {[%clk 0:02:13.2]} 20... b5 {[%clk 0:02:09.5]} 21.
Qg4 {[%clk 0:02:10.7]} 21... Qe6 {[%clk 0:02:08.6]} 22. Qxe6+ {[%clk 0:01:49.8]}
22... Rxe6 {[%clk 0:02:09.5]} 23. Nb1 {[%clk 0:01:50.2]} 23... Ra6 {[%clk
0:01:48.5]} 24. f4 {[%clk 0:01:24.7]} 24... Rc8 {[%clk 0:01:45.4]} 25. fxe5
{[%clk 0:01:24]} 25... fxe5 {[%clk 0:01:42.7]} 26. Rf2 {[%clk 0:01:23]} 26...
Bc1 {[%clk 0:01:41.3]} 27. Kf1 {[%clk 0:01:07]} 27... Be3 {[%clk 0:01:41.4]} 28.
Re2 {[%clk 0:01:06.8]} 28... Rf8+ {[%clk 0:01:37]} 29. Ke1 {[%clk 0:01:06.7]}
29... Raf6 {[%clk 0:01:37.9]} 30. Nd2 {[%clk 0:01:02.9]} 30... Nc5 {[%clk
0:01:36.1]} 31. Nf3 {[%clk 0:01:02.3]} 31... Re8 {[%clk 0:01:19.1]} 32. Bb2
{[%clk 0:01:02.1]} 32... Ne6 {[%clk 0:01:19.4]} 33. Rxe3 {[%clk 0:00:32.6]}
33... dxe3 {[%clk 0:01:18.1]} 34. Bxe5 {[%clk 0:00:32.9]} 34... Rg6 {[%clk
0:01:12.7]} 35. g3 {[%clk 0:00:31.2]} 35... Ng5 {[%clk 0:01:05.6]} 36. Nxg5
{[%clk 0:00:27.1]} 36... Rxe5 {[%clk 0:01:06.2]} 37. Nf3 {[%clk 0:00:27.4]}
37... Re8 {[%clk 0:01:03.7]} 38. Ke2 {[%clk 0:00:27.5]} 38... Ra6 {[%clk
0:01:04.3]} 39. Ra1 {[%clk 0:00:26.1]} 39... Rc8 {[%clk 0:01:04.9]} 40. Nd4
{[%clk 0:00:23.5]} 40... b4 {[%clk 0:01:03.1]} 41. Kxe3 {[%clk 0:00:23.4]} 41...
g6 {[%clk 0:01:00.3]} 42. e5 {[%clk 0:00:22.6]} 42... Kf7 {[%clk 0:01:00.7]} 43.
e6+ {[%clk 0:00:21.4]} 43... Ke7 {[%clk 0:01:00]} 44. Rf1 {[%clk 0:00:21.6]}
44... Rf8 {[%clk 0:00:56.5]} 45. Rc1 {[%clk 0:00:19.8]} 45... Rxa2 {[%clk
0:00:51.5]} 46. Rc7+ {[%clk 0:00:19.8]} 46... Kd6 {[%clk 0:00:52.2]} 47. Rd7+
{[%clk 0:00:18.9]} 47... Ke5 {[%clk 0:00:28.9]} 48. e7 {[%clk 0:00:19]} 48...
Re8 {[%clk 0:00:29.1]} 49. Nc6+ {[%clk 0:00:16.7]} 49... Kf6 {[%clk 0:00:29.5]}
50. Rd8 {[%clk 0:00:16.7]} 50... Kf7 {[%clk 0:00:29.9]} 51. d4 {[%clk
0:00:15.6]} 51... Ra3 {[%clk 0:00:20.4]} 52. d5 {[%clk 0:00:15]} 52... Rxb3+
{[%clk 0:00:20.8]} 53. Ke4 {[%clk 0:00:15.4]} 53... Rxe7+ {[%clk 0:00:19.6]} 54.
Nxe7 {[%clk 0:00:14.4]} 54... Kxe7 {[%clk 0:00:20.5]} 55. Rh8 {[%clk 0:00:14.3]}
55... a5 {[%clk 0:00:19]} 56. Rxh7+ {[%clk 0:00:14.4]} 56... Kd6 {[%clk
0:00:19.3]} 57. Rg7 {[%clk 0:00:13.7]} 57... a4 {[%clk 0:00:19.7]} 58. Rxg6+
{[%clk 0:00:14]} 58... Kd7 {[%clk 0:00:20.6]} 59. Rg7+ {[%clk 0:00:12.5]} 59...
Kd6 {[%clk 0:00:18.8]} 60. Rg6+ {[%clk 0:00:12.4]} 60... Kd7 {[%clk 0:00:19.4]}
61. Rg7+ {[%clk 0:00:12.4]} 61... Kd8 {[%clk 0:00:19.9]} 62. Rg8+ {[%clk
0:00:12.1]} 62... Ke7 {[%clk 0:00:18.1]} 63. Rg7+ {[%clk 0:00:12.2]} 63... Kf8
{[%clk 0:00:17.8]} 64. Ra7 {[%clk 0:00:11.7]} 64... a3 {[%clk 0:00:18]} 65. d6
{[%clk 0:00:11.9]} 65... Ke8 {[%clk 0:00:18.4]} 66. h4 {[%clk 0:00:08.4]} 66...
Rb2 {[%clk 0:00:16.9]} 67. h5 {[%clk 0:00:07.9]} 67... a2 {[%clk 0:00:17.3]} 68.
h6 {[%clk 0:00:07.9]} 68... b3 {[%clk 0:00:16.7]} 69. h7 {[%clk 0:00:07.8]}
69... Rh2 {[%clk 0:00:17.3]} 70. d7+ {[%clk 0:00:03.6]} 70... Kd8 {[%clk
0:00:16.6]} 71. Ra8+ {[%clk 0:00:02]} 71... Kxd7 {[%clk 0:00:16.6]} 72. Ra7+
{[%clk 0:00:01.8]} 72... Kc6 {[%clk 0:00:15.7]} 73. g4 {[%clk 0:00:02.7]} 73...
Rxh7 {[%clk 0:00:15.3]} 74. Rxa2 {[%clk 0:00:03.6]} 74... bxa2 {[%clk
0:00:15.4]} 75. g5 {[%clk 0:00:04.2]} 75... a1=Q {[%clk 0:00:16.3]} 76. g6
{[%clk 0:00:05.1]} 76... Re7+ {[%clk 0:00:16.5]} 0-1

[Event "*** Titled Tuesday Blitz"]
[Site "Chess.com"]
[Date "2020.11.03"]
[Round "1"]
[White "Kolle05"]
[Black "Revnov"]
[Result "0-1"]
[WhiteElo "2364"]
[BlackElo "2711"]
[TimeControl "180+1"]
[EndTime "10:09:24 PST"]
[Termination "Revnov won by checkmate"]

1. e4 {[%clk 0:02:58.9]} 1... c5 {[%clk 0:02:59]} 2. Nf3 {[%clk 0:02:57.7]} 2...
d6 {[%clk 0:02:57.3]} 3. Bb5+ {[%clk 0:02:56.8]} 3... Bd7 {[%clk 0:02:55.5]} 4.
Bxd7+ {[%clk 0:02:56.7]} 4... Qxd7 {[%clk 0:02:56.4]} 5. c4 {[%clk 0:02:53.6]}
5... Nc6 {[%clk 0:02:55.2]} 6. Nc3 {[%clk 0:02:52.8]} 6... e5 {[%clk 0:02:54.1]}
7. d3 {[%clk 0:02:49.3]} 7... Be7 {[%clk 0:02:52.9]} 8. O-O {[%clk 0:02:45.2]}
8... f5 {[%clk 0:02:51.9]} 9. a3 {[%clk 0:02:42.8]} 9... Nf6 {[%clk 0:02:51.2]}
10. b4 {[%clk 0:02:14.1]} 10... Nd4 {[%clk 0:02:36.1]} 11. bxc5 {[%clk
0:02:01.5]} 11... fxe4 {[%clk 0:02:19.6]} 12. dxe4 {[%clk 0:01:53.2]} 12... dxc5
{[%clk 0:02:04.4]} 13. Nxe5 {[%clk 0:01:48.3]} 13... Qe6 {[%clk 0:02:03.5]} 14.
Qa4+ {[%clk 0:01:42.7]} 14... b5 {[%clk 0:01:35]} 15. Nxb5 {[%clk 0:01:36.2]}
15... Ne2+ {[%clk 0:01:34]} 16. Kh1 {[%clk 0:01:34.7]} 16... Qxe5 {[%clk
0:01:32.8]} 17. Ra2 {[%clk 0:00:31.4]} 17... O-O {[%clk 0:01:22.5]} 18. Rxe2
{[%clk 0:00:28]} 18... Ng4 {[%clk 0:01:16]} 19. g3 {[%clk 0:00:16.2]} 19... a6
{[%clk 0:01:15.4]} 20. Bf4 {[%clk 0:00:13.6]} 20... Qh5 {[%clk 0:01:10.4]} 21.
f3 {[%clk 0:00:11.8]} 21... axb5 {[%clk 0:01:07.5]} 22. Qb3 {[%clk 0:00:12]}
22... Ne5 {[%clk 0:00:56.6]} 23. cxb5+ {[%clk 0:00:10.8]} 23... c4 {[%clk
0:00:56.6]} 24. Qc3 {[%clk 0:00:11]} 24... Bf6 {[%clk 0:00:53.9]} 25. Bxe5
{[%clk 0:00:10.9]} 25... Bxe5 {[%clk 0:00:52.3]} 26. Qxc4+ {[%clk 0:00:11.8]}
26... Kh8 {[%clk 0:00:51.9]} 27. f4 {[%clk 0:00:11.9]} 27... Rac8 {[%clk
0:00:45.7]} 28. Qa2 {[%clk 0:00:11.7]} 28... Bd4 {[%clk 0:00:37.4]} 29. Kg2
{[%clk 0:00:07.7]} 29... Qxb5 {[%clk 0:00:36.2]} 30. Qd2 {[%clk 0:00:06.5]}
30... Bc5 {[%clk 0:00:32.9]} 31. Rd1 {[%clk 0:00:06.5]} 31... Bxa3 {[%clk
0:00:31.9]} 32. e5 {[%clk 0:00:07]} 32... Bb4 {[%clk 0:00:30.1]} 33. Qe3 {[%clk
0:00:07.1]} 33... h6 {[%clk 0:00:29.4]} 34. Qf3 {[%clk 0:00:07.2]} 34... Rfe8
{[%clk 0:00:27.8]} 35. Rd5 {[%clk 0:00:07.4]} 35... Qa6 {[%clk 0:00:24.8]} 36.
Rd3 {[%clk 0:00:06.9]} 36... Rc4 {[%clk 0:00:23.7]} 37. f5 {[%clk 0:00:06.9]}
37... Bf8 {[%clk 0:00:20.9]} 38. f6 {[%clk 0:00:07]} 38... Qc8 {[%clk
0:00:20.5]} 39. fxg7+ {[%clk 0:00:06.2]} 39... Bxg7 {[%clk 0:00:20.3]} 40. e6
{[%clk 0:00:07.1]} 40... Rc7 {[%clk 0:00:15.4]} 41. Qf5 {[%clk 0:00:05.6]} 41...
Rce7 {[%clk 0:00:15.3]} 42. Rde3 {[%clk 0:00:05.9]} 42... Rf8 {[%clk 0:00:15.7]}
43. Qg6 {[%clk 0:00:05.4]} 43... Qe8 {[%clk 0:00:15.8]} 44. Qg4 {[%clk
0:00:05.1]} 44... Bf6 {[%clk 0:00:15.2]} 45. Re4 {[%clk 0:00:05.2]} 45... Rg7
{[%clk 0:00:15.4]} 46. Qf4 {[%clk 0:00:05.3]} 46... Be7 {[%clk 0:00:15.6]} 47.
Qxh6+ {[%clk 0:00:04.9]} 47... Kg8 {[%clk 0:00:16]} 48. Qe3 {[%clk 0:00:05.8]}
48... Qg6 {[%clk 0:00:15.9]} 49. h3 {[%clk 0:00:05.9]} 49... Qh5 {[%clk
0:00:15.3]} 50. g4 {[%clk 0:00:05.6]} 50... Qh4 {[%clk 0:00:14.3]} 51. Rf4
{[%clk 0:00:04.5]} 51... Rd8 {[%clk 0:00:11.6]} 52. Rf7 {[%clk 0:00:03.7]} 52...
Rxf7 {[%clk 0:00:10.2]} 53. exf7+ {[%clk 0:00:04.6]} 53... Kxf7 {[%clk
0:00:11.1]} 54. Qe6+ {[%clk 0:00:04.6]} 54... Kf8 {[%clk 0:00:10.3]} 55. Rf2+
{[%clk 0:00:05]} 55... Ke8 {[%clk 0:00:10.8]} 56. Qg8+ {[%clk 0:00:05]} 56...
Kd7 {[%clk 0:00:10.6]} 57. Rd2+ {[%clk 0:00:05.7]} 57... Bd6 {[%clk 0:00:10.4]}
58. Qf7+ {[%clk 0:00:05.4]} 58... Qe7 {[%clk 0:00:10.4]} 59. Qf5+ {[%clk
0:00:05.7]} 59... Qe6 {[%clk 0:00:09.8]} 60. Qxe6+ {[%clk 0:00:05.1]} 60... Kxe6
{[%clk 0:00:09.7]} 61. Re2+ {[%clk 0:00:05.1]} 61... Be5 {[%clk 0:00:09.6]} 62.
Kf3 {[%clk 0:00:05.3]} 62... Rd3+ {[%clk 0:00:09.8]} 63. Re3 {[%clk 0:00:05.4]}
63... Rd4 {[%clk 0:00:10.3]} 64. h4 {[%clk 0:00:05.1]} 64... Ra4 {[%clk
0:00:10.4]} 65. Re4 {[%clk 0:00:05.2]} 65... Ra3+ {[%clk 0:00:10.5]} 66. Re3
{[%clk 0:00:05.6]} 66... Ra4 {[%clk 0:00:10.1]} 67. Re4 {[%clk 0:00:05.4]} 67...
Ra3+ {[%clk 0:00:10.4]} 68. Re3 {[%clk 0:00:05.8]} 68... Ra1 {[%clk 0:00:10.9]}
69. g5 {[%clk 0:00:04.6]} 69... Kf5 {[%clk 0:00:10.3]} 70. Rb3 {[%clk
0:00:04.2]} 70... Ra4 {[%clk 0:00:10.2]} 71. Rb5 {[%clk 0:00:02.9]} 71... Rxh4
{[%clk 0:00:09.4]} 72. g6 {[%clk 0:00:03.5]} 72... Rh6 {[%clk 0:00:08.7]} 73. g7
{[%clk 0:00:03.1]} 73... Rg6 {[%clk 0:00:08.6]} 74. Rb7 {[%clk 0:00:03.4]} 74...
Bxg7 {[%clk 0:00:08]} 75. Rb5+ {[%clk 0:00:04.3]} 75... Be5 {[%clk 0:00:07.9]}
76. Kf2 {[%clk 0:00:05.2]} 76... Rg4 {[%clk 0:00:07.6]} 77. Ke2 {[%clk
0:00:06.1]} 77... Ra4 {[%clk 0:00:07.3]} 78. Rc5 {[%clk 0:00:05.5]} 78... Ke4
{[%clk 0:00:07.4]} 79. Rc8 {[%clk 0:00:05.5]} 79... Ra2+ {[%clk 0:00:06.6]} 80.
Kd1 {[%clk 0:00:05.3]} 80... Bd4 {[%clk 0:00:06.5]} 81. Rd8 {[%clk 0:00:05.6]}
81... Kd3 {[%clk 0:00:06.4]} 82. Rc8 {[%clk 0:00:03.5]} 82... Rh2 {[%clk
0:00:05.6]} 83. Re8 {[%clk 0:00:01.5]} 83... Rd2+ {[%clk 0:00:06]} 84. Ke1
{[%clk 0:00:01.2]} 84... Rb2 {[%clk 0:00:05.1]} 85. Kf1 {[%clk 0:00:01.2]} 85...
Be3 {[%clk 0:00:04.9]} 86. Re6 {[%clk 0:00:01.3]} 86... Ra2 {[%clk 0:00:02.8]}
87. Ke1 {[%clk 0:00:01.3]} 87... Ra1# {[%clk 0:00:02.1]} 0-1

[Event "*** Titled Tuesday Blitz"]
[Site "Chess.com"]
[Date "2020.11.03"]
[Round "1"]
[White "tk22h"]
[Black "Margency"]
[Result "1/2-1/2"]
[WhiteElo "2382"]
[BlackElo "2718"]
[TimeControl "180+1"]
[EndTime "10:10:24 PST"]
[Termination "Game drawn - insufficient material"]

1. c4 {[%clk 0:02:58.2]} 1... Nf6 {[%clk 0:02:59]} 2. Nc3 {[%clk 0:02:56.2]}
2... g6 {[%clk 0:02:59]} 3. e4 {[%clk 0:02:55.3]} 3... d6 {[%clk 0:02:59.3]} 4.
d4 {[%clk 0:02:55.7]} 4... Bg7 {[%clk 0:03:00]} 5. Be2 {[%clk 0:02:55.7]} 5...
O-O {[%clk 0:02:59.9]} 6. Nf3 {[%clk 0:02:55.3]} 6... e5 {[%clk 0:02:58.9]} 7.
dxe5 {[%clk 0:02:54.9]} 7... dxe5 {[%clk 0:02:59.1]} 8. Qxd8 {[%clk 0:02:55.5]}
8... Rxd8 {[%clk 0:02:59.7]} 9. Nd5 {[%clk 0:02:55.8]} 9... Na6 {[%clk
0:02:45.8]} 10. Bg5 {[%clk 0:02:54.4]} 10... Rd6 {[%clk 0:02:44.6]} 11. Nxf6+
{[%clk 0:02:53.7]} 11... Bxf6 {[%clk 0:02:44.4]} 12. Bxf6 {[%clk 0:02:53.9]}
12... Rxf6 {[%clk 0:02:44.7]} 13. Nxe5 {[%clk 0:02:54.5]} 13... Re6 {[%clk
0:02:44.7]} 14. f4 {[%clk 0:02:54.1]} 14... Nc5 {[%clk 0:02:38.1]} 15. O-O-O
{[%clk 0:02:48.9]} 15... Re8 {[%clk 0:02:34.9]} 16. Bf3 {[%clk 0:02:47.5]} 16...
f6 {[%clk 0:02:24.1]} 17. Nd3 {[%clk 0:02:41.5]} 17... Nxe4 {[%clk 0:02:17.6]}
18. Rhe1 {[%clk 0:02:40.8]} 18... Nd6 {[%clk 0:01:42.1]} 19. c5 {[%clk
0:02:34.8]} 19... Rxe1 {[%clk 0:01:40.6]} 20. Rxe1 {[%clk 0:02:28.5]} 20... Nf7
{[%clk 0:01:40.3]} 21. Re8+ {[%clk 0:02:27.3]} 21... Kg7 {[%clk 0:01:40.5]} 22.
c6 {[%clk 0:02:19.2]} 22... bxc6 {[%clk 0:01:35.8]} 23. Bxc6 {[%clk 0:02:16.9]}
23... Rb8 {[%clk 0:01:36.4]} 24. Bd5 {[%clk 0:02:06.6]} 24... Nd6 {[%clk
0:01:17.6]} 25. Re7+ {[%clk 0:02:04.1]} 25... Kh8 {[%clk 0:01:15.3]} 26. Rxc7
{[%clk 0:02:02.8]} 26... Bf5 {[%clk 0:01:12.2]} 27. Nc5 {[%clk 0:02:02.2]} 27...
a5 {[%clk 0:01:10.1]} 28. h3 {[%clk 0:01:42.8]} 28... h5 {[%clk 0:01:09.7]} 29.
Nd7 {[%clk 0:01:29.7]} 29... Bxd7 {[%clk 0:01:04.6]} 30. Rxd7 {[%clk 0:01:29.8]}
30... Nf5 {[%clk 0:01:04.4]} 31. Ra7 {[%clk 0:01:24.1]} 31... Rb5 {[%clk
0:01:03]} 32. Be4 {[%clk 0:01:20.7]} 32... Rc5+ {[%clk 0:01:00.4]} 33. Kd2
{[%clk 0:01:20.1]} 33... h4 {[%clk 0:01:00.3]} 34. Bxf5 {[%clk 0:01:15.2]} 34...
Rxf5 {[%clk 0:01:00]} 35. Ke3 {[%clk 0:01:15.3]} 35... Rb5 {[%clk 0:00:59.5]}
36. b3 {[%clk 0:01:14.9]} 36... f5 {[%clk 0:00:59.8]} 37. Kd4 {[%clk 0:01:13.9]}
37... Kg8 {[%clk 0:00:59.4]} 38. Rd7 {[%clk 0:01:00.1]} 38... Kf8 {[%clk
0:00:57.1]} 39. Ra7 {[%clk 0:00:59.3]} 39... Kg8 {[%clk 0:00:55]} 40. Rd7 {[%clk
0:00:57.8]} 40... Kf8 {[%clk 0:00:54.5]} 41. Rd5 {[%clk 0:00:56.8]} 41... Rb4+
{[%clk 0:00:54.3]} 42. Ke5 {[%clk 0:00:56.6]} 42... Ke7 {[%clk 0:00:52.5]} 43.
Rxa5 {[%clk 0:00:55.9]} 43... Re4+ {[%clk 0:00:52.8]} 44. Kd5 {[%clk 0:00:54.9]}
44... Rxf4 {[%clk 0:00:53.4]} 45. Ra6 {[%clk 0:00:54]} 45... g5 {[%clk
0:00:52.1]} 46. Rg6 {[%clk 0:00:53.3]} 46... g4 {[%clk 0:00:52.4]} 47. hxg4
{[%clk 0:00:53.4]} 47... fxg4 {[%clk 0:00:53]} 48. Ke5 {[%clk 0:00:52.3]} 48...
Rb4 {[%clk 0:00:52.1]} 49. Kf5 {[%clk 0:00:51.1]} 49... h3 {[%clk 0:00:50]} 50.
gxh3 {[%clk 0:00:50.3]} 50... gxh3 {[%clk 0:00:50.1]} 51. Rh6 {[%clk 0:00:49.7]}
51... Rb5+ {[%clk 0:00:48.5]} 52. Ke4 {[%clk 0:00:49.1]} 52... Ra5 {[%clk
0:00:47.8]} 53. a4 {[%clk 0:00:47.9]} 53... Rc5 {[%clk 0:00:45.3]} 54. Rxh3
{[%clk 0:00:47]} 54... Kd7 {[%clk 0:00:45.7]} 55. Kd4 {[%clk 0:00:46.8]} 55...
Rc1 {[%clk 0:00:45.4]} 56. Rc3 {[%clk 0:00:45.3]} 56... Rb1 {[%clk 0:00:44.9]}
57. Kc4 {[%clk 0:00:43.2]} 57... Kc6 {[%clk 0:00:45.1]} 58. Kb4+ {[%clk
0:00:43.1]} 58... Kb6 {[%clk 0:00:45.3]} 59. a5+ {[%clk 0:00:43.3]} 59... Kb7
{[%clk 0:00:44.6]} 60. Rh3 {[%clk 0:00:41.4]} 60... Rg1 {[%clk 0:00:43.4]} 61.
Ka4 {[%clk 0:00:40.7]} 61... Ka6 {[%clk 0:00:40.4]} 62. Rh6+ {[%clk 0:00:39.8]}
62... Kb7 {[%clk 0:00:40.9]} 63. b4 {[%clk 0:00:39.3]} 63... Rg4 {[%clk
0:00:40.8]} 64. Rd6 {[%clk 0:00:32.1]} 64... Rh4 {[%clk 0:00:40.6]} 65. Kb5
{[%clk 0:00:31.3]} 65... Rh5+ {[%clk 0:00:39.7]} 66. Kc4 {[%clk 0:00:31.3]}
66... Rh4+ {[%clk 0:00:40]} 67. Kc5 {[%clk 0:00:31.2]} 67... Rh5+ {[%clk
0:00:39.4]} 68. Rd5 {[%clk 0:00:31.3]} 68... Rh7 {[%clk 0:00:37.3]} 69. b5
{[%clk 0:00:31.1]} 69... Rc7+ {[%clk 0:00:36.5]} 70. Kb4 {[%clk 0:00:30.6]}
70... Rh7 {[%clk 0:00:37.4]} 71. a6+ {[%clk 0:00:29.7]} 71... Ka7 {[%clk
0:00:36.9]} 72. Ka5 {[%clk 0:00:29.6]} 72... Rh6 {[%clk 0:00:34]} 73. Rd7+
{[%clk 0:00:28.1]} 73... Kb8 {[%clk 0:00:34.5]} 74. Re7 {[%clk 0:00:27.5]} 74...
Ka8 {[%clk 0:00:33.8]} 75. Kb4 {[%clk 0:00:25]} 75... Rh4+ {[%clk 0:00:31.9]}
76. Kc5 {[%clk 0:00:24.9]} 76... Rh5+ {[%clk 0:00:32.5]} 77. Kc6 {[%clk
0:00:25.1]} 77... Rh6+ {[%clk 0:00:32.9]} 78. Kc7 {[%clk 0:00:23.5]} 78... Ka7
{[%clk 0:00:31.4]} 79. b6+ {[%clk 0:00:20.2]} 79... Rxb6 {[%clk 0:00:30.2]} 80.
Kc8+ {[%clk 0:00:14]} 80... Kxa6 {[%clk 0:00:30.3]} 81. Rc7 {[%clk 0:00:13.7]}
81... Rh6 {[%clk 0:00:29.3]} 82. Rd7 {[%clk 0:00:12.9]} 82... Kb6 {[%clk
0:00:29.3]} 83. Rb7+ {[%clk 0:00:12.4]} 83... Ka6 {[%clk 0:00:29.4]} 84. Rd7
{[%clk 0:00:12.1]} 84... Rf6 {[%clk 0:00:28.3]} 85. Rc7 {[%clk 0:00:12]} 85...
Kb6 {[%clk 0:00:27.2]} 86. Rd7 {[%clk 0:00:11.9]} 86... Rf8+ {[%clk 0:00:26.6]}
87. Rd8 {[%clk 0:00:11.9]} 87... Rf7 {[%clk 0:00:27.2]} 88. Rd7 {[%clk
0:00:11.8]} 88... Rf6 {[%clk 0:00:27.3]} 89. Rd8 {[%clk 0:00:12]} 89... Kc6
{[%clk 0:00:27.5]} 90. Re8 {[%clk 0:00:11.3]} 90... Rf7 {[%clk 0:00:27.4]} 91.
Rd8 {[%clk 0:00:11.2]} 91... Ra7 {[%clk 0:00:26.8]} 92. Kb8 {[%clk 0:00:10.7]}
92... Rb7+ {[%clk 0:00:27.2]} 93. Kc8 {[%clk 0:00:10.7]} 93... Rc7+ {[%clk
0:00:27.3]} 94. Kb8 {[%clk 0:00:10.8]} 94... Rb7+ {[%clk 0:00:28.1]} 95. Kc8
{[%clk 0:00:11]} 95... Rg7 {[%clk 0:00:29]} 96. Re8 {[%clk 0:00:10.1]} 96... Kb6
{[%clk 0:00:29.1]} 97. Re6+ {[%clk 0:00:09.3]} 97... Ka7 {[%clk 0:00:29.6]} 98.
Rd6 {[%clk 0:00:08.7]} 98... Rg8+ {[%clk 0:00:29.3]} 99. Kd7 {[%clk 0:00:08.2]}
99... Rg7+ {[%clk 0:00:29.3]} 100. Kc8 {[%clk 0:00:08.2]} 100... Rg5 {[%clk
0:00:27.4]} 101. Rd7+ {[%clk 0:00:07.7]} 101... Kb6 {[%clk 0:00:27.6]} 102. Rb7+
{[%clk 0:00:07.3]} 102... Kc6 {[%clk 0:00:27.2]} 103. Rc7+ {[%clk 0:00:07.4]}
103... Kd6 {[%clk 0:00:27.8]} 104. Rd7+ {[%clk 0:00:07.6]} 104... Ke6 {[%clk
0:00:28.4]} 105. Rc7 {[%clk 0:00:07.6]} 105... Rb5 {[%clk 0:00:28.2]} 106. Rc6+
{[%clk 0:00:06.5]} 106... Kd5 {[%clk 0:00:27.9]} 107. Rc7 {[%clk 0:00:06.5]}
107... Rb1 {[%clk 0:00:28.3]} 108. Rd7+ {[%clk 0:00:06.5]} 108... Ke6 {[%clk
0:00:29]} 109. Rc7 {[%clk 0:00:06.3]} 109... Rh1 {[%clk 0:00:29.5]} 110. Rc6+
{[%clk 0:00:05.8]} 110... Kd5 {[%clk 0:00:29.7]} 111. Rc7 {[%clk 0:00:05.7]}
111... Rh8+ {[%clk 0:00:30.1]} 112. Kb7 {[%clk 0:00:05.4]} 112... Kd6 {[%clk
0:00:31]} 113. Rc6+ {[%clk 0:00:05.3]} 113... Kd7 {[%clk 0:00:31]} 114. Rc7+
{[%clk 0:00:05.5]} 114... Kd6 {[%clk 0:00:31.7]} 115. Rc6+ {[%clk 0:00:05.6]}
115... Kd5 {[%clk 0:00:32.6]} 116. Rc7 {[%clk 0:00:05.6]} 116... Rh2 {[%clk
0:00:32.9]} 117. Rd7+ {[%clk 0:00:05]} 117... Kc5 {[%clk 0:00:32.4]} 118. Rc7+
{[%clk 0:00:05]} 118... Kb5 {[%clk 0:00:32.7]} 119. Rd7 {[%clk 0:00:04.8]}
119... Rh6 {[%clk 0:00:32.6]} 120. Rc7 {[%clk 0:00:04.6]} 120... Rb6+ {[%clk
0:00:32.4]} 121. Kc8 {[%clk 0:00:04.5]} 121... Rc6 {[%clk 0:00:32.9]} 122. Rxc6
{[%clk 0:00:04.2]} 122... Kxc6 {[%clk 0:00:33.6]} 1/2-1/2